[Event "Late-Titled-Tuesday-Blitz-April-02-2024"]
[Site "Chess.com"]
[Date "2024.04.02"]
[Round "8"]
[White "SergioMoralesG"]
[Black "PawnEatingZombie"]
[Result "1-0"]
[WhiteElo "2416"]
[BlackElo "2191"]
[TimeControl "180+1"]
[EndTime "15:25:53 PDT"]
[Termination "SergioMoralesG won by resignation"]

1. d4 {[%clk 0:02:50.8]} 1... Nf6 {[%clk 0:02:58.8]} 2. c4 {[%clk 0:02:51.2]}
2... g6 {[%clk 0:02:59.1]} 3. Nc3 {[%clk 0:02:50.8]} 3... Bg7 {[%clk 0:02:59.1]}
4. e4 {[%clk 0:02:51.4]} 4... d6 {[%clk 0:02:59.6]} 5. Nf3 {[%clk 0:02:52]} 5...
O-O {[%clk 0:03:00.1]} 6. Be2 {[%clk 0:02:52.6]} 6... e5 {[%clk 0:02:58.9]} 7.
Be3 {[%clk 0:02:53.1]} 7... exd4 {[%clk 0:02:55.4]} 8. Nxd4 {[%clk 0:02:53.9]}
8... Re8 {[%clk 0:02:53.7]} 9. f3 {[%clk 0:02:54.3]} 9... c6 {[%clk 0:02:53.8]}
10. Bf2 {[%clk 0:02:54.7]} 10... d5 {[%clk 0:02:52.6]} 11. exd5 {[%clk
0:02:55.6]} 11... cxd5 {[%clk 0:02:52.6]} 12. c5 {[%clk 0:02:56.3]} 12... Nc6
{[%clk 0:02:47.6]} 13. Nxc6 {[%clk 0:02:56.4]} 13... bxc6 {[%clk 0:02:47.5]} 14.
O-O {[%clk 0:02:57.1]} 14... Nh5 {[%clk 0:02:28.8]} 15. Qd2 {[%clk 0:02:52.5]}
15... Qc7 {[%clk 0:02:18.7]} 16. Rfe1 {[%clk 0:02:47]} 16... Nf4 {[%clk
0:02:04.2]} 17. Bf1 {[%clk 0:02:46.9]} 17... Bd7 {[%clk 0:01:57.1]} 18. Bd4
{[%clk 0:02:42.5]} 18... Bh6 {[%clk 0:01:33.7]} 19. Kh1 {[%clk 0:02:31.2]} 19...
Ne6 {[%clk 0:00:59.8]} 20. Qxh6 {[%clk 0:01:51]} 20... Nxd4 {[%clk 0:00:59.8]}
21. Qd2 {[%clk 0:01:50.2]} 21... Ne6 {[%clk 0:00:58.8]} 22. b4 {[%clk
0:01:50.4]} 22... a5 {[%clk 0:00:58.1]} 23. a3 {[%clk 0:01:38.6]} 23... Qb7
{[%clk 0:00:49.4]} 24. Rab1 {[%clk 0:01:32.3]} 24... axb4 {[%clk 0:00:47.8]} 25.
axb4 {[%clk 0:01:32.4]} 25... Ra3 {[%clk 0:00:41.7]} 26. b5 {[%clk 0:01:19.2]}
26... Nxc5 {[%clk 0:00:38.6]} 27. Rxe8+ {[%clk 0:00:55.1]} 27... Bxe8 {[%clk
0:00:38.5]} 28. bxc6 {[%clk 0:00:45.7]} 28... Qxc6 {[%clk 0:00:37.5]} 29. Nxd5
{[%clk 0:00:43.1]} 29... Rd3 {[%clk 0:00:25.6]} 30. Qxd3 {[%clk 0:00:21.4]}
30... Nxd3 {[%clk 0:00:21]} 31. Ne7+ {[%clk 0:00:21.4]} 1-0

[Event "Late-Titled-Tuesday-Blitz-April-02-2024"]
[Site "Chess.com"]
[Date "2024.04.02"]
[Round "8"]
[White "NovakRatko"]
[Black "youngdinousaur"]
[Result "0-1"]
[WhiteElo "2401"]
[BlackElo "2245"]
[TimeControl "180+1"]
[EndTime "15:25:54 PDT"]
[Termination "youngdinousaur won on time"]

1. d4 {[%clk 0:03:00.9]} 1... Nf6 {[%clk 0:02:57.5]} 2. c4 {[%clk 0:03:00.8]}
2... e6 {[%clk 0:02:58.4]} 3. a3 {[%clk 0:03:00.8]} 3... d5 {[%clk 0:02:58.7]}
4. Nc3 {[%clk 0:03:01.1]} 4... b6 {[%clk 0:02:55.2]} 5. cxd5 {[%clk 0:02:59.6]}
5... Nxd5 {[%clk 0:02:53.6]} 6. e4 {[%clk 0:02:59.2]} 6... Nxc3 {[%clk
0:02:53.3]} 7. bxc3 {[%clk 0:03:00.1]} 7... Bb7 {[%clk 0:02:53.5]} 8. f3 {[%clk
0:02:59.7]} 8... c5 {[%clk 0:02:53]} 9. Be3 {[%clk 0:02:57.4]} 9... Be7 {[%clk
0:02:52.8]} 10. Bd3 {[%clk 0:02:49.9]} 10... O-O {[%clk 0:02:52.7]} 11. Ne2
{[%clk 0:02:47.4]} 11... Nc6 {[%clk 0:02:41.8]} 12. O-O {[%clk 0:02:45.6]} 12...
Rc8 {[%clk 0:02:40.4]} 13. Qa4 {[%clk 0:02:38.1]} 13... Na5 {[%clk 0:02:38.3]}
14. Rfd1 {[%clk 0:02:23.1]} 14... Bc6 {[%clk 0:02:26.1]} 15. Bb5 {[%clk
0:02:11.5]} 15... cxd4 {[%clk 0:02:17.1]} 16. Bxd4 {[%clk 0:01:42.2]} 16... Qc7
{[%clk 0:02:12.7]} 17. c4 {[%clk 0:01:19.3]} 17... Rfd8 {[%clk 0:01:58.8]} 18.
Kh1 {[%clk 0:01:12.2]} 18... Bf6 {[%clk 0:01:54.7]} 19. Bxf6 {[%clk 0:01:10.3]}
19... gxf6 {[%clk 0:01:55.6]} 20. Nd4 {[%clk 0:00:49.4]} 20... Bxb5 {[%clk
0:01:49.7]} 21. Nxb5 {[%clk 0:00:43.4]} 21... Qxc4 {[%clk 0:01:39.6]} 22. Rxd8+
{[%clk 0:00:35.6]} 22... Rxd8 {[%clk 0:01:36.4]} 23. Qxc4 {[%clk 0:00:35.9]}
23... Nxc4 {[%clk 0:01:37]} 24. Nxa7 {[%clk 0:00:36.3]} 24... Nxa3 {[%clk
0:01:35.3]} 25. Nc6 {[%clk 0:00:31.4]} 25... Rd2 {[%clk 0:01:30.9]} 26. h4
{[%clk 0:00:29.4]} 26... Nc4 {[%clk 0:01:30.7]} 27. Re1 {[%clk 0:00:12.5]} 27...
Kg7 {[%clk 0:01:28.6]} 28. Kh2 {[%clk 0:00:12.2]} 28... b5 {[%clk 0:01:26.3]}
29. Kg3 {[%clk 0:00:11.9]} 29... Rd6 {[%clk 0:01:22.6]} 30. Nb4 {[%clk
0:00:11.7]} 30... Rd2 {[%clk 0:01:23]} 31. Kh3 {[%clk 0:00:11.5]} 31... Rb2
{[%clk 0:01:21.9]} 32. Nc6 {[%clk 0:00:11.8]} 32... b4 {[%clk 0:01:20.7]} 33. g4
{[%clk 0:00:10.9]} 33... b3 {[%clk 0:01:20.5]} 34. Nd4 {[%clk 0:00:09.2]} 34...
Nd2 {[%clk 0:01:16]} 35. Re3 {[%clk 0:00:08.4]} 35... Rb1 {[%clk 0:01:14]} 36.
Kg2 {[%clk 0:00:07.4]} 36... b2 {[%clk 0:01:13.6]} 37. Re2 {[%clk 0:00:06.8]}
37... Rc1 {[%clk 0:01:03.9]} 38. Rxd2 {[%clk 0:00:02.5]} 38... b1=Q {[%clk
0:01:03.9]} 39. Ne2 {[%clk 0:00:03]} 39... Rh1 {[%clk 0:01:02.3]} 0-1

[Event "Late-Titled-Tuesday-Blitz-April-02-2024"]
[Site "Chess.com"]
[Date "2024.04.02"]
[Round "8"]
[White "dosto07"]
[Black "chessydotcom"]
[Result "1-0"]
[WhiteElo "2474"]
[BlackElo "2301"]
[TimeControl "180+1"]
[EndTime "15:25:57 PDT"]
[Termination "dosto07 won by resignation"]

1. e4 {[%clk 0:03:00.9]} 1... c5 {[%clk 0:02:59.9]} 2. Nf3 {[%clk 0:03:00.3]}
2... e6 {[%clk 0:03:00]} 3. c3 {[%clk 0:03:00.4]} 3... d5 {[%clk 0:02:59.8]} 4.
exd5 {[%clk 0:03:00.7]} 4... Qxd5 {[%clk 0:03:00.7]} 5. d4 {[%clk 0:03:01.4]}
5... Nf6 {[%clk 0:02:59.7]} 6. Na3 {[%clk 0:03:02]} 6... Nc6 {[%clk 0:02:58.3]}
7. Be3 {[%clk 0:03:02.1]} 7... cxd4 {[%clk 0:02:58]} 8. Nb5 {[%clk 0:03:02]}
8... Qd7 {[%clk 0:02:54.8]} 9. Nbxd4 {[%clk 0:03:02]} 9... a6 {[%clk 0:02:50.6]}
10. Bd3 {[%clk 0:02:55.6]} 10... Be7 {[%clk 0:02:45.2]} 11. O-O {[%clk
0:02:55.1]} 11... O-O {[%clk 0:02:44.6]} 12. Qc2 {[%clk 0:02:39.4]} 12... h6
{[%clk 0:02:38.9]} 13. Rad1 {[%clk 0:02:38.1]} 13... Qc7 {[%clk 0:02:37.6]} 14.
Rfe1 {[%clk 0:02:31.2]} 14... b5 {[%clk 0:02:34.4]} 15. Nxc6 {[%clk 0:02:31.1]}
15... Qxc6 {[%clk 0:02:33.8]} 16. Ne5 {[%clk 0:02:29.1]} 16... Qc7 {[%clk
0:02:30.5]} 17. Bd4 {[%clk 0:02:26]} 17... Bb7 {[%clk 0:02:28.1]} 18. Qe2 {[%clk
0:02:25.6]} 18... Rad8 {[%clk 0:02:26.1]} 19. Ng6 {[%clk 0:02:08.2]} 19... Rfe8
{[%clk 0:01:43.9]} 20. Nxe7+ {[%clk 0:02:06.6]} 20... Qxe7 {[%clk 0:01:44.8]}
21. h3 {[%clk 0:01:52.4]} 21... Nd5 {[%clk 0:01:30.6]} 22. Qe5 {[%clk
0:01:41.1]} 22... Nf6 {[%clk 0:01:25.8]} 23. Bc5 {[%clk 0:01:36.5]} 23... Rd5
{[%clk 0:01:05]} 24. Bxe7 {[%clk 0:01:32.5]} 24... Rxe5 {[%clk 0:01:05.2]} 25.
Rxe5 {[%clk 0:01:30.3]} 25... Rxe7 {[%clk 0:01:05.2]} 26. Be2 {[%clk 0:01:20.8]}
26... Bd5 {[%clk 0:01:02.5]} 27. a4 {[%clk 0:01:20.4]} 27... Rb7 {[%clk
0:00:57.8]} 28. axb5 {[%clk 0:01:19.9]} 28... axb5 {[%clk 0:00:58.6]} 29. Ra1
{[%clk 0:01:19.5]} 29... Nd7 {[%clk 0:00:56.1]} 30. Re3 {[%clk 0:01:18.6]} 30...
f6 {[%clk 0:00:54.6]} 31. Ra5 {[%clk 0:01:11]} 31... b4 {[%clk 0:00:45.1]} 32.
c4 {[%clk 0:01:11.2]} 32... Bc6 {[%clk 0:00:40.7]} 33. Rxe6 {[%clk 0:01:11]}
33... Rc7 {[%clk 0:00:39.5]} 34. Bh5 {[%clk 0:00:56.2]} 34... Nf8 {[%clk
0:00:34.3]} 35. Rd6 {[%clk 0:00:51]} 35... g6 {[%clk 0:00:31.7]} 36. Rc5 {[%clk
0:00:47.9]} 36... gxh5 {[%clk 0:00:29.4]} 37. Rcxc6 {[%clk 0:00:48.2]} 37... Ra7
{[%clk 0:00:29.7]} 38. Ra6 {[%clk 0:00:47.4]} 38... Rc7 {[%clk 0:00:28.3]} 39.
b3 {[%clk 0:00:47.2]} 39... Re7 {[%clk 0:00:28.4]} 40. Rxf6 {[%clk 0:00:45.8]}
40... Re1+ {[%clk 0:00:28.4]} 41. Kh2 {[%clk 0:00:46.3]} 41... Rb1 {[%clk
0:00:28.4]} 42. Ra8 {[%clk 0:00:45.4]} 1-0

[Event "Late-Titled-Tuesday-Blitz-April-02-2024"]
[Site "Chess.com"]
[Date "2024.04.02"]
[Round "8"]
[White "ameetghasi100"]
[Black "Alexei_Gubajdullin"]
[Result "0-1"]
[WhiteElo "2786"]
[BlackElo "2641"]
[TimeControl "180+1"]
[EndTime "15:25:59 PDT"]
[Termination "Alexei_Gubajdullin won on time"]

1. Nf3 {[%clk 0:03:00.3]} 1... Nf6 {[%clk 0:02:59.4]} 2. d4 {[%clk 0:03:01.2]}
2... g6 {[%clk 0:02:59.9]} 3. Nc3 {[%clk 0:02:59.4]} 3... d5 {[%clk 0:02:58.6]}
4. Bf4 {[%clk 0:02:59.1]} 4... a6 {[%clk 0:02:57.4]} 5. e3 {[%clk 0:02:59.4]}
5... Bg7 {[%clk 0:02:57.2]} 6. Be2 {[%clk 0:02:59.6]} 6... O-O {[%clk
0:02:57.1]} 7. Ne5 {[%clk 0:03:00]} 7... c5 {[%clk 0:02:55.9]} 8. h4 {[%clk
0:02:59.7]} 8... h5 {[%clk 0:02:50.3]} 9. Bf3 {[%clk 0:02:59.4]} 9... cxd4
{[%clk 0:02:49.4]} 10. exd4 {[%clk 0:02:59.3]} 10... Nc6 {[%clk 0:02:47.3]} 11.
Qd2 {[%clk 0:02:59.6]} 11... Bf5 {[%clk 0:02:45.4]} 12. O-O {[%clk 0:02:55.2]}
12... Ne4 {[%clk 0:02:44.6]} 13. Bxe4 {[%clk 0:02:51.9]} 13... dxe4 {[%clk
0:02:43.8]} 14. Nxc6 {[%clk 0:02:33.9]} 14... bxc6 {[%clk 0:02:43.5]} 15. Rad1
{[%clk 0:02:34.4]} 15... Qa5 {[%clk 0:02:40.9]} 16. Rfe1 {[%clk 0:02:32.7]}
16... c5 {[%clk 0:02:40.1]} 17. d5 {[%clk 0:02:23]} 17... Qb4 {[%clk 0:02:38.6]}
18. Nxe4 {[%clk 0:02:16.8]} 18... Qxb2 {[%clk 0:02:26.8]} 19. c4 {[%clk
0:01:51.8]} 19... Qa3 {[%clk 0:02:19.8]} 20. Bg5 {[%clk 0:01:46.3]} 20... Rfe8
{[%clk 0:02:18.3]} 21. Ng3 {[%clk 0:01:41.8]} 21... Bg4 {[%clk 0:02:17.6]} 22.
Rb1 {[%clk 0:01:40.4]} 22... Qc3 {[%clk 0:01:47.5]} 23. Qxc3 {[%clk 0:01:38]}
23... Bxc3 {[%clk 0:01:47.4]} 24. Rxe7 {[%clk 0:01:37.4]} 24... f6 {[%clk
0:01:33.9]} 25. Rxe8+ {[%clk 0:01:33.9]} 25... Rxe8 {[%clk 0:01:33.5]} 26. Be3
{[%clk 0:01:34.3]} 26... Bb4 {[%clk 0:01:32.7]} 27. a3 {[%clk 0:01:10.7]} 27...
Bxa3 {[%clk 0:01:30.3]} 28. Ra1 {[%clk 0:01:11]} 28... Bb4 {[%clk 0:01:24.6]}
29. Rxa6 {[%clk 0:01:11.1]} 29... g5 {[%clk 0:01:23.5]} 30. Rxf6 {[%clk
0:00:57.6]} 30... gxh4 {[%clk 0:01:22.2]} 31. Nf5 {[%clk 0:00:57.9]} 31... Bc3
{[%clk 0:01:05.6]} 32. Rg6+ {[%clk 0:00:42.4]} 32... Kf7 {[%clk 0:01:04.5]} 33.
Rg5 {[%clk 0:00:42.8]} 33... Kf6 {[%clk 0:00:59.9]} 34. Rxg4 {[%clk 0:00:25.5]}
34... hxg4 {[%clk 0:00:56.4]} 35. Nxh4 {[%clk 0:00:23.9]} 35... Bd4 {[%clk
0:00:51.3]} 36. Bxd4+ {[%clk 0:00:16.7]} 36... cxd4 {[%clk 0:00:51]} 37. Kf1
{[%clk 0:00:17.6]} 37... d3 {[%clk 0:00:50.8]} 0-1

[Event "Late-Titled-Tuesday-Blitz-April-02-2024"]
[Site "Chess.com"]
[Date "2024.04.02"]
[Round "8"]
[White "Tugrik1969"]
[Black "GoltsevDmitry2000"]
[Result "1-0"]
[WhiteElo "2567"]
[BlackElo "2771"]
[TimeControl "180+1"]
[EndTime "15:25:59 PDT"]
[Termination "Tugrik1969 won by resignation"]

1. d4 {[%clk 0:03:00.9]} 1... e6 {[%clk 0:02:58.4]} 2. c4 {[%clk 0:03:00.5]}
2... d5 {[%clk 0:02:57.6]} 3. Nf3 {[%clk 0:03:00.3]} 3... Nf6 {[%clk 0:02:56.5]}
4. g3 {[%clk 0:03:00.4]} 4... dxc4 {[%clk 0:02:56]} 5. Bg2 {[%clk 0:03:00.5]}
5... c5 {[%clk 0:02:56.5]} 6. O-O {[%clk 0:02:56.3]} 6... Nc6 {[%clk 0:02:56.3]}
7. Ne5 {[%clk 0:02:50.7]} 7... Nxe5 {[%clk 0:02:50.7]} 8. dxe5 {[%clk
0:02:50.4]} 8... Qxd1 {[%clk 0:02:51.4]} 9. Rxd1 {[%clk 0:02:50]} 9... Nd7
{[%clk 0:02:52.1]} 10. Na3 {[%clk 0:02:44.9]} 10... a6 {[%clk 0:02:21.1]} 11.
Nxc4 {[%clk 0:02:41.8]} 11... Rb8 {[%clk 0:02:19.2]} 12. a4 {[%clk 0:02:40.4]}
12... Be7 {[%clk 0:02:17.6]} 13. a5 {[%clk 0:02:38.9]} 13... O-O {[%clk
0:02:14.2]} 14. Be3 {[%clk 0:02:36.7]} 14... b5 {[%clk 0:02:02.8]} 15. axb6
{[%clk 0:02:35.7]} 15... Nxb6 {[%clk 0:02:02.6]} 16. Na5 {[%clk 0:02:33.1]}
16... Bd7 {[%clk 0:01:56.5]} 17. b4 {[%clk 0:01:44.2]} 17... Rfc8 {[%clk
0:01:21.4]} 18. Nb7 {[%clk 0:01:44]} 18... Ba4 {[%clk 0:01:09.4]} 19. Rdc1
{[%clk 0:01:34.8]} 19... Bb5 {[%clk 0:00:57.9]} 20. Bxc5 {[%clk 0:01:18.3]}
20... Bxc5 {[%clk 0:00:37.2]} 21. bxc5 {[%clk 0:01:16.9]} 21... Nd7 {[%clk
0:00:25.9]} 22. c6 {[%clk 0:01:04.3]} 22... Nxe5 {[%clk 0:00:14.4]} 23. c7
{[%clk 0:01:02]} 23... Ra8 {[%clk 0:00:10.1]} 24. Nd6 {[%clk 0:01:00.2]} 24...
Nc4 {[%clk 0:00:01.1]} 25. Nxb5 {[%clk 0:00:34.6]} 25... Nb6 {[%clk 0:00:01.3]}
26. Bxa8 {[%clk 0:00:33]} 26... Rxa8 {[%clk 0:00:02.2]} 27. Nd6 {[%clk
0:00:32.7]} 27... Nc8 {[%clk 0:00:02]} 28. Nxc8 {[%clk 0:00:32.5]} 28... Rxc8
{[%clk 0:00:02.9]} 29. Rd1 {[%clk 0:00:31.3]} 29... Kf8 {[%clk 0:00:03.8]} 30.
Rd8+ {[%clk 0:00:31.2]} 1-0

[Event "Late-Titled-Tuesday-Blitz-April-02-2024"]
[Site "Chess.com"]
[Date "2024.04.02"]
[Round "8"]
[White "vladgoncharov"]
[Black "grandcoach"]
[Result "1-0"]
[WhiteElo "2571"]
[BlackElo "2277"]
[TimeControl "180+1"]
[EndTime "15:25:59 PDT"]
[Termination "vladgoncharov won on time"]

1. d4 {[%clk 0:03:00.9]} 1... Nf6 {[%clk 0:02:55.6]} 2. c4 {[%clk 0:02:58.8]}
2... e6 {[%clk 0:02:55.3]} 3. Nc3 {[%clk 0:02:59]} 3... Bb4 {[%clk 0:02:55.3]}
4. e3 {[%clk 0:02:59.3]} 4... Bxc3+ {[%clk 0:02:55]} 5. bxc3 {[%clk 0:02:58.8]}
5... c5 {[%clk 0:02:55.8]} 6. Bd3 {[%clk 0:02:58.7]} 6... Nc6 {[%clk 0:02:56]}
7. Ne2 {[%clk 0:02:58.5]} 7... e5 {[%clk 0:02:55.1]} 8. d5 {[%clk 0:02:53.2]}
8... e4 {[%clk 0:02:54.6]} 9. Bc2 {[%clk 0:02:32.3]} 9... Ne5 {[%clk 0:02:52.8]}
10. Ng3 {[%clk 0:02:27.8]} 10... Nxc4 {[%clk 0:02:45]} 11. Nxe4 {[%clk
0:02:25.1]} 11... d6 {[%clk 0:02:34.4]} 12. Ng3 {[%clk 0:02:18.3]} 12... O-O
{[%clk 0:02:30.3]} 13. O-O {[%clk 0:02:14.2]} 13... Ne5 {[%clk 0:01:55.6]} 14.
h3 {[%clk 0:02:11.1]} 14... Re8 {[%clk 0:01:50.3]} 15. f4 {[%clk 0:01:59]} 15...
Nc4 {[%clk 0:01:43.2]} 16. e4 {[%clk 0:01:58.9]} 16... h5 {[%clk 0:01:14.3]} 17.
e5 {[%clk 0:01:36.7]} 17... h4 {[%clk 0:01:05.2]} 18. exf6 {[%clk 0:01:29.7]}
18... hxg3 {[%clk 0:01:02.2]} 19. Qd3 {[%clk 0:01:28.2]} 19... Qxf6 {[%clk
0:00:43.2]} 20. Qxc4 {[%clk 0:01:27.1]} 20... Bf5 {[%clk 0:00:23.1]} 21. Bxf5
{[%clk 0:00:51.7]} 21... Qxf5 {[%clk 0:00:24]} 22. Ba3 {[%clk 0:00:48.3]} 22...
Re4 {[%clk 0:00:20.5]} 23. Qd3 {[%clk 0:00:46.5]} 23... Rae8 {[%clk 0:00:19.2]}
24. Qxg3 {[%clk 0:00:43.5]} 24... Re2 {[%clk 0:00:15.1]} 25. Rae1 {[%clk
0:00:31.4]} 25... Qxd5 {[%clk 0:00:08.7]} 26. Rxe2 {[%clk 0:00:26.3]} 26... Rxe2
{[%clk 0:00:09.6]} 27. Bc1 {[%clk 0:00:25.9]} 27... Qxa2 {[%clk 0:00:06.3]} 28.
f5 {[%clk 0:00:26.1]} 1-0

[Event "Late-Titled-Tuesday-Blitz-April-02-2024"]
[Site "Chess.com"]
[Date "2024.04.02"]
[Round "8"]
[White "remyrushbrooke"]
[Black "Veleamater"]
[Result "1-0"]
[WhiteElo "2271"]
[BlackElo "2403"]
[TimeControl "180+1"]
[EndTime "15:26:00 PDT"]
[Termination "remyrushbrooke won by resignation"]

1. Nf3 {[%clk 0:03:00.9]} 1... Nf6 {[%clk 0:02:59.3]} 2. g3 {[%clk 0:03:01]}
2... g6 {[%clk 0:03:00.2]} 3. Bg2 {[%clk 0:03:00.5]} 3... Bg7 {[%clk 0:03:01.1]}
4. d4 {[%clk 0:03:00.5]} 4... O-O {[%clk 0:03:02]} 5. c4 {[%clk 0:03:00.6]} 5...
d6 {[%clk 0:03:02.9]} 6. Nc3 {[%clk 0:03:00.6]} 6... c5 {[%clk 0:03:03.5]} 7.
dxc5 {[%clk 0:03:00.1]} 7... dxc5 {[%clk 0:03:01.9]} 8. O-O {[%clk 0:03:00.7]}
8... Nc6 {[%clk 0:03:00.8]} 9. Be3 {[%clk 0:02:59.7]} 9... Be6 {[%clk
0:03:00.6]} 10. Bxc5 {[%clk 0:02:54.9]} 10... Bxc4 {[%clk 0:03:00]} 11. Qa4
{[%clk 0:02:47.6]} 11... Be6 {[%clk 0:02:53.4]} 12. Rfd1 {[%clk 0:02:45.6]}
12... Qc8 {[%clk 0:02:52.2]} 13. Rac1 {[%clk 0:02:25.4]} 13... Rd8 {[%clk
0:02:39.8]} 14. Nd4 {[%clk 0:02:07.4]} 14... Nxd4 {[%clk 0:02:29.4]} 15. Bxd4
{[%clk 0:02:07.4]} 15... Qd7 {[%clk 0:02:21.6]} 16. b3 {[%clk 0:01:33]} 16...
Qxa4 {[%clk 0:02:09.9]} 17. Nxa4 {[%clk 0:01:33.9]} 17... Bd5 {[%clk 0:02:07.7]}
18. Bxf6 {[%clk 0:01:21.8]} 18... Bxg2 {[%clk 0:02:02.4]} 19. Bxg7 {[%clk
0:01:19.4]} 19... Bc6 {[%clk 0:01:58.4]} 20. Bb2 {[%clk 0:01:16.2]} 20... f6
{[%clk 0:01:58.5]} 21. Nc5 {[%clk 0:01:14.5]} 21... Kf7 {[%clk 0:01:58.1]} 22.
f3 {[%clk 0:01:06.8]} 22... e5 {[%clk 0:01:58.1]} 23. Kf2 {[%clk 0:01:06.8]}
23... Rac8 {[%clk 0:01:55.2]} 24. Rxd8 {[%clk 0:00:57.3]} 24... Rxd8 {[%clk
0:01:54.8]} 25. e4 {[%clk 0:00:57.8]} 25... Rd2+ {[%clk 0:01:54.3]} 26. Ke3
{[%clk 0:00:54.9]} 26... Rxb2 {[%clk 0:01:54.6]} 27. Nxb7 {[%clk 0:00:55.1]}
27... Bb5 {[%clk 0:01:43.5]} 28. Nd6+ {[%clk 0:00:54.5]} 28... Ke6 {[%clk
0:01:43.1]} 29. Nxb5 {[%clk 0:00:55.4]} 29... Rxa2 {[%clk 0:01:41.8]} 30. Nc7+
{[%clk 0:00:48.3]} 30... Kf7 {[%clk 0:01:37.4]} 31. h4 {[%clk 0:00:47]} 31...
Rg2 {[%clk 0:01:35.5]} 32. g4 {[%clk 0:00:44.7]} 32... Rh2 {[%clk 0:01:35.5]}
33. Nd5 {[%clk 0:00:44.3]} 33... Rxh4 {[%clk 0:01:32.4]} 34. Rc7+ {[%clk
0:00:44.8]} 34... Kf8 {[%clk 0:01:30.2]} 35. Rxa7 {[%clk 0:00:43.7]} 35... h5
{[%clk 0:01:29.6]} 36. gxh5 {[%clk 0:00:42.9]} 36... gxh5 {[%clk 0:01:29.7]} 37.
b4 {[%clk 0:00:41.5]} 37... Rh1 {[%clk 0:01:30.2]} 38. Rh7 {[%clk 0:00:38.9]}
38... h4 {[%clk 0:01:20]} 39. b5 {[%clk 0:00:37.3]} 39... Rb1 {[%clk 0:01:19.4]}
40. b6 {[%clk 0:00:37.8]} 40... Kg8 {[%clk 0:01:17.9]} 41. Rxh4 {[%clk
0:00:37.4]} 41... Kf7 {[%clk 0:01:18.2]} 42. Rh7+ {[%clk 0:00:37.2]} 42... Ke6
{[%clk 0:01:17]} 43. Rc7 {[%clk 0:00:25.2]} 43... f5 {[%clk 0:01:15.2]} 44. Rc4
{[%clk 0:00:24.7]} 44... f4+ {[%clk 0:01:08.2]} 45. Kd2 {[%clk 0:00:22.9]} 45...
Kd6 {[%clk 0:01:00.6]} 46. Rb4 {[%clk 0:00:22]} 46... Rxb4 {[%clk 0:00:57]} 47.
Nxb4 {[%clk 0:00:22.9]} 47... Kc5 {[%clk 0:00:54.8]} 48. Nd5 {[%clk 0:00:23.8]}
48... Kc6 {[%clk 0:00:54.7]} 49. Ke2 {[%clk 0:00:24.7]} 49... Kb7 {[%clk
0:00:55.6]} 50. Kf2 {[%clk 0:00:25]} 50... Kc6 {[%clk 0:00:56.5]} 51. Kg2 {[%clk
0:00:25.8]} 51... Kb7 {[%clk 0:00:57.4]} 52. Kh3 {[%clk 0:00:26.5]} 52... Kc6
{[%clk 0:00:58.3]} 53. Kg4 {[%clk 0:00:27.3]} 53... Kd6 {[%clk 0:00:59.1]} 54.
Kf5 {[%clk 0:00:28.2]} 1-0

[Event "Late-Titled-Tuesday-Blitz-April-02-2024"]
[Site "Chess.com"]
[Date "2024.04.02"]
[Round "8"]
[White "kikoveiga"]
[Black "PhileKhoob"]
[Result "0-1"]
[WhiteElo "2457"]
[BlackElo "2264"]
[TimeControl "180+1"]
[EndTime "15:26:05 PDT"]
[Termination "PhileKhoob won by resignation"]

1. e4 {[%clk 0:03:00.9]} 1... c6 {[%clk 0:02:58.5]} 2. d4 {[%clk 0:03:00.6]}
2... d5 {[%clk 0:02:58.6]} 3. Nc3 {[%clk 0:03:01.3]} 3... dxe4 {[%clk
0:02:58.5]} 4. Nxe4 {[%clk 0:03:02.2]} 4... Nf6 {[%clk 0:02:58.9]} 5. Nxf6+
{[%clk 0:03:02.9]} 5... exf6 {[%clk 0:02:59.8]} 6. c3 {[%clk 0:03:03.6]} 6...
Bd6 {[%clk 0:02:56.2]} 7. Bd3 {[%clk 0:03:04.1]} 7... Na6 {[%clk 0:02:56.1]} 8.
Qc2 {[%clk 0:03:03.9]} 8... Nc7 {[%clk 0:02:53.6]} 9. Ne2 {[%clk 0:03:03.1]}
9... h5 {[%clk 0:02:52.8]} 10. O-O {[%clk 0:03:02.5]} 10... h4 {[%clk
0:02:48.8]} 11. h3 {[%clk 0:03:00.4]} 11... Nd5 {[%clk 0:02:48]} 12. Re1 {[%clk
0:02:56.5]} 12... Kf8 {[%clk 0:02:46.6]} 13. a3 {[%clk 0:02:53.2]} 13... Ne7
{[%clk 0:02:26.7]} 14. Bf4 {[%clk 0:02:48.9]} 14... g6 {[%clk 0:02:26.2]} 15.
Rad1 {[%clk 0:02:46.1]} 15... Kg7 {[%clk 0:02:26]} 16. c4 {[%clk 0:02:44.5]}
16... Bf5 {[%clk 0:02:25.5]} 17. Bxd6 {[%clk 0:02:42.2]} 17... Qxd6 {[%clk
0:02:25.5]} 18. Bxf5 {[%clk 0:02:37.1]} 18... Nxf5 {[%clk 0:02:25.6]} 19. d5
{[%clk 0:02:14.2]} 19... cxd5 {[%clk 0:02:25.1]} 20. cxd5 {[%clk 0:01:58.7]}
20... Rac8 {[%clk 0:02:23.4]} 21. Qb3 {[%clk 0:01:57.6]} 21... Rc7 {[%clk
0:01:51.2]} 22. Nc3 {[%clk 0:01:57.8]} 22... a6 {[%clk 0:01:44.7]} 23. Ne4
{[%clk 0:01:57.5]} 23... Qf4 {[%clk 0:01:43.7]} 24. Qd3 {[%clk 0:01:41.4]} 24...
Rd8 {[%clk 0:01:30.9]} 25. d6 {[%clk 0:01:13.1]} 25... Rcd7 {[%clk 0:01:30.3]}
26. Qc3 {[%clk 0:01:11.8]} 26... Nxd6 {[%clk 0:01:24.6]} 27. Nc5 {[%clk
0:00:41.3]} 27... Nb5 {[%clk 0:01:15.7]} 28. Qc2 {[%clk 0:00:40.9]} 28... Rxd1
{[%clk 0:01:06.1]} 29. Rxd1 {[%clk 0:00:41.8]} 29... Nd4 {[%clk 0:00:53.6]} 30.
Qd2 {[%clk 0:00:02.6]} 30... Nf3+ {[%clk 0:00:33.1]} 31. gxf3 {[%clk 0:00:02.4]}
31... Rxd2 {[%clk 0:00:33.6]} 32. Rxd2 {[%clk 0:00:02.3]} 32... Qxd2 {[%clk
0:00:34.5]} 33. Kf1 {[%clk 0:00:02.6]} 33... Qc1+ {[%clk 0:00:34.2]} 34. Kg2
{[%clk 0:00:02.8]} 34... Qxc5 {[%clk 0:00:35.1]} 0-1